[Event "*** MasterClass Titled Tuesday Blitz"]
[Site "Chess.com"]
[Date "2017.09.05"]
[Round "5"]
[White "PowerThinking2650"]
[Black "Vamostodorecto"]
[Result "0-1"]
[WhiteElo "2206"]
[BlackElo "2342"]
[TimeControl "180+2"]
[EndTime "14:15:38 PDT"]
[Termination "Vamostodorecto won by checkmate"]

1. e4 {[%clk 0:03:01.9]} 1... g6 {[%clk 0:03:01.9]} 2. d4 {[%clk 0:03:01.8]}
2... Bg7 {[%clk 0:03:02.7]} 3. Nc3 {[%clk 0:02:59.2]} 3... a6 {[%clk 0:03:04.3]}
4. f4 {[%clk 0:02:58.3]} 4... b5 {[%clk 0:03:05.7]} 5. Nf3 {[%clk 0:02:59.4]}
5... Bb7 {[%clk 0:03:07.2]} 6. Bd3 {[%clk 0:02:59.6]} 6... d6 {[%clk 0:03:08.7]}
7. O-O {[%clk 0:02:59.9]} 7... Nd7 {[%clk 0:03:10.3]} 8. e5 {[%clk 0:02:59.6]}
8... c5 {[%clk 0:03:07.8]} 9. exd6 {[%clk 0:02:59.5]} 9... exd6 {[%clk
0:03:09.7]} 10. Ne4 {[%clk 0:02:57]} 10... Qb6 {[%clk 0:03:05.3]} 11. dxc5
{[%clk 0:02:31.9]} 11... dxc5 {[%clk 0:03:05.4]} 12. Be3 {[%clk 0:02:24.8]}
12... Ne7 {[%clk 0:03:01.9]} 13. b4 {[%clk 0:02:21.6]} 13... Qe6 {[%clk
0:02:36.5]} 14. Nfg5 {[%clk 0:02:14.2]} 14... Qc6 {[%clk 0:02:36.7]} 15. Be2
{[%clk 0:01:55.4]} 15... O-O {[%clk 0:02:08.6]} 16. Bf3 {[%clk 0:01:55.3]} 16...
Qc7 {[%clk 0:01:56.2]} 17. bxc5 {[%clk 0:01:45.9]} 17... h6 {[%clk 0:01:56.6]}
18. Nh3 {[%clk 0:01:37.5]} 18... Nf5 {[%clk 0:01:52.8]} 19. Bf2 {[%clk
0:01:38.2]} 19... Rad8 {[%clk 0:01:50.4]} 20. Qe2 {[%clk 0:00:55.4]} 20... Nd4
{[%clk 0:01:42.1]} 21. Bxd4 {[%clk 0:00:47.5]} 21... Bxd4+ {[%clk 0:01:44]} 22.
Kh1 {[%clk 0:00:49.4]} 22... Rfe8 {[%clk 0:01:44.2]} 23. Rad1 {[%clk 0:00:48.5]}
23... Bxe4 {[%clk 0:01:03.3]} 24. Rxd4 {[%clk 0:00:40.3]} 24... Bf5 {[%clk
0:00:51.2]} 25. Qd2 {[%clk 0:00:36.4]} 25... Bxh3 {[%clk 0:00:45.8]} 26. gxh3
{[%clk 0:00:35]} 26... Nxc5 {[%clk 0:00:46.7]} 27. f5 {[%clk 0:00:26.1]} 27...
Rxd4 {[%clk 0:00:37.3]} 28. Qxd4 {[%clk 0:00:26.3]} 28... Qe5 {[%clk 0:00:38.8]}
29. Qh4 {[%clk 0:00:24]} 29... Qxf5 {[%clk 0:00:33.4]} 30. Qxh6 {[%clk
0:00:23.8]} 30... Qf6 {[%clk 0:00:25.2]} 31. Bg2 {[%clk 0:00:20.8]} 31... Qg7
{[%clk 0:00:25.1]} 32. Qg5 {[%clk 0:00:21.1]} 32... Ne6 {[%clk 0:00:25.5]} 33.
Qd5 {[%clk 0:00:20.1]} 33... Qd4 {[%clk 0:00:24.2]} 34. Qc6 {[%clk 0:00:19.8]}
34... Rf8 {[%clk 0:00:21.3]} 35. Qxa6 {[%clk 0:00:20.2]} 35... b4 {[%clk
0:00:22.7]} 36. Qb7 {[%clk 0:00:20.8]} 36... Kg7 {[%clk 0:00:20.9]} 37. Bd5
{[%clk 0:00:21.2]} 37... Qe5 {[%clk 0:00:14.5]} 38. Bg2 {[%clk 0:00:17]} 38...
Nf4 {[%clk 0:00:14.7]} 39. Qxb4 {[%clk 0:00:16.1]} 39... g5 {[%clk 0:00:13.2]}
40. c3 {[%clk 0:00:14.8]} 40... Qe2 {[%clk 0:00:13.9]} 41. Qd4+ {[%clk
0:00:15.2]} 41... f6 {[%clk 0:00:10.8]} 42. Rb1 {[%clk 0:00:13.1]} 42... Qxg2#
{[%clk 0:00:11.2]} 0-1

[Event "*** MasterClass Titled Tuesday Blitz"]
[Site "Chess.com"]
[Date "2017.09.05"]
[Round "5"]
[White "jcibarra"]
[Black "johnathan113"]
[Result "1-0"]
[WhiteElo "2690"]
[BlackElo "2521"]
[TimeControl "180+2"]
[EndTime "14:15:41 PDT"]
[Termination "jcibarra won by resignation"]

1. e4 {[%clk 0:03:01.9]} 1... c5 {[%clk 0:03:01.1]} 2. Nf3 {[%clk 0:03:02.5]}
2... g6 {[%clk 0:03:02.5]} 3. d4 {[%clk 0:03:02.7]} 3... cxd4 {[%clk 0:03:04.4]}
4. Qxd4 {[%clk 0:03:05.3]} 4... Nf6 {[%clk 0:03:05.5]} 5. Nc3 {[%clk 0:03:05.4]}
5... Nc6 {[%clk 0:03:06.5]} 6. Qa4 {[%clk 0:03:06.2]} 6... Ng4 {[%clk
0:03:06.6]} 7. h3 {[%clk 0:02:54.5]} 7... Nge5 {[%clk 0:03:07.4]} 8. Nxe5 {[%clk
0:02:45.8]} 8... Nxe5 {[%clk 0:03:09.3]} 9. Be3 {[%clk 0:02:44.1]} 9... Bg7
{[%clk 0:03:10.6]} 10. O-O-O {[%clk 0:02:43.9]} 10... O-O {[%clk 0:03:11.6]} 11.
Be2 {[%clk 0:02:35.8]} 11... d6 {[%clk 0:03:08.4]} 12. h4 {[%clk 0:02:31.9]}
12... Ng4 {[%clk 0:02:58.3]} 13. Bxg4 {[%clk 0:02:31.4]} 13... Bxg4 {[%clk
0:03:00.2]} 14. f3 {[%clk 0:02:33]} 14... Bd7 {[%clk 0:03:01]} 15. Qb3 {[%clk
0:02:33.1]} 15... b5 {[%clk 0:03:02.1]} 16. h5 {[%clk 0:02:32.8]} 16... a5
{[%clk 0:02:56.6]} 17. hxg6 {[%clk 0:02:31.3]} 17... hxg6 {[%clk 0:02:58.5]} 18.
Nd5 {[%clk 0:02:25.8]} 18... a4 {[%clk 0:02:28.4]} 19. Qb4 {[%clk 0:02:15.6]}
19... Rc8 {[%clk 0:02:29.5]} 20. Bb6 {[%clk 0:02:11.6]} 20... Qe8 {[%clk
0:02:25.8]} 21. Qd2 {[%clk 0:01:37.3]} 21... Be6 {[%clk 0:02:20.4]} 22. Bd4
{[%clk 0:01:37.2]} 22... f6 {[%clk 0:02:11.3]} 23. Kb1 {[%clk 0:01:36.4]} 23...
Bf7 {[%clk 0:01:55.5]} 24. g4 {[%clk 0:01:32.3]} 24... g5 {[%clk 0:01:53]} 25.
Qh2 {[%clk 0:01:15.2]} 25... Bg6 {[%clk 0:01:53.2]} 26. a3 {[%clk 0:01:15.7]}
26... Rc4 {[%clk 0:01:38.8]} 27. c3 {[%clk 0:01:15.6]} 27... Qf7 {[%clk
0:01:31.2]} 28. Ka1 {[%clk 0:01:14.2]} 28... Rb8 {[%clk 0:01:24.5]} 29. Rhe1
{[%clk 0:00:59.2]} 29... Qe6 {[%clk 0:01:16.9]} 30. Ne3 {[%clk 0:00:48.7]} 30...
Bf7 {[%clk 0:01:07.1]} 31. Nd5 {[%clk 0:00:45.9]} 31... b4 {[%clk 0:01:04.1]}
32. cxb4 {[%clk 0:00:42.4]} 32... Rbc8 {[%clk 0:01:01.1]} 33. Bc3 {[%clk
0:00:41.2]} 33... Rxc3 {[%clk 0:00:54.8]} 34. bxc3 {[%clk 0:00:39.9]} 34... Qd7
{[%clk 0:00:50.1]} 35. Nb6 {[%clk 0:00:37.8]} 35... Qc7 {[%clk 0:00:39.2]} 36.
Nxc8 {[%clk 0:00:38.8]} 36... f5 {[%clk 0:00:40.4]} 37. Nxe7+ {[%clk 0:00:35.3]}
37... Kf8 {[%clk 0:00:40.7]} 38. e5 {[%clk 0:00:26.3]} 38... Qxe7 {[%clk
0:00:33.3]} 39. Rxd6 {[%clk 0:00:24.8]} 39... f4 {[%clk 0:00:33.8]} 40. Qd2
{[%clk 0:00:18.8]} 40... Bxe5 {[%clk 0:00:29.1]} 41. Rc6 {[%clk 0:00:19.5]}
41... Qe8 {[%clk 0:00:14.9]} 42. Rc5 {[%clk 0:00:20.1]} 1-0

[Event "*** MasterClass Titled Tuesday Blitz"]
[Site "Chess.com"]
[Date "2017.09.05"]
[Round "5"]
[White "Blitzstream"]
[Black "iusegine"]
[Result "0-1"]
[WhiteElo "2477"]
[BlackElo "2395"]
[TimeControl "180+2"]
[EndTime "14:15:41 PDT"]
[Termination "iusegine won by resignation"]

1. g4 {[%clk 0:03:01.9]} 1... e5 {[%clk 0:03:00]} 2. Bg2 {[%clk 0:03:00.9]} 2...
Ne7 {[%clk 0:03:01.3]} 3. c4 {[%clk 0:02:59.1]} 3... Ng6 {[%clk 0:03:02.1]} 4.
e3 {[%clk 0:02:47]} 4... Nh4 {[%clk 0:03:03]} 5. Be4 {[%clk 0:02:43.5]} 5... c6
{[%clk 0:02:54.3]} 6. Nc3 {[%clk 0:02:44.2]} 6... d6 {[%clk 0:02:53.2]} 7. d4
{[%clk 0:02:27.1]} 7... Be7 {[%clk 0:02:43.6]} 8. h3 {[%clk 0:01:38.4]} 8... h5
{[%clk 0:02:28.1]} 9. gxh5 {[%clk 0:00:42.3]} 9... f5 {[%clk 0:02:29]} 10. Bd3
{[%clk 0:00:40.9]} 10... Nd7 {[%clk 0:02:28.5]} 11. Kd2 {[%clk 0:00:24.3]} 11...
Nf6 {[%clk 0:02:24.3]} 12. Kc2 {[%clk 0:00:24.7]} 12... a6 {[%clk 0:02:13.8]}
13. Be2 {[%clk 0:00:25.7]} 13... e4 {[%clk 0:02:07.7]} 14. f3 {[%clk 0:00:22.5]}
14... b5 {[%clk 0:02:07.6]} 15. fxe4 {[%clk 0:00:23.3]} 15... fxe4 {[%clk
0:02:09.6]} 16. b3 {[%clk 0:00:20.8]} 16... bxc4 {[%clk 0:01:59.5]} 17. bxc4
{[%clk 0:00:21.7]} 17... Qa5 {[%clk 0:01:58.2]} 18. Rb1 {[%clk 0:00:22.1]} 18...
Qg5 {[%clk 0:01:39.3]} 19. Bd2 {[%clk 0:00:19.6]} 19... Qg2 {[%clk 0:01:39.1]}
20. Qe1 {[%clk 0:00:15.4]} 20... Nf5 {[%clk 0:01:36.9]} 21. Nf3 {[%clk
0:00:04.6]} 21... exf3 {[%clk 0:01:38]} 22. Bd3 {[%clk 0:00:06.2]} 22... f2
{[%clk 0:01:11]} 23. Qf1 {[%clk 0:00:07.3]} 23... Qg3 {[%clk 0:01:11.7]} 24. Qe2
{[%clk 0:00:06.1]} 24... Rxh5 {[%clk 0:00:50.4]} 25. Rbf1 {[%clk 0:00:06.6]}
25... Rxh3 {[%clk 0:00:37.6]} 26. Rxh3 {[%clk 0:00:07.3]} 26... Qxh3 {[%clk
0:00:39.5]} 27. Rxf2 {[%clk 0:00:07.9]} 27... Ng4 {[%clk 0:00:29]} 28. Rf3
{[%clk 0:00:06.7]} 28... Qh5 {[%clk 0:00:27.6]} 29. Qf2 {[%clk 0:00:05.4]} 29...
Nxf2 {[%clk 0:00:22.3]} 30. Rxf2 {[%clk 0:00:05.5]} 30... g6 {[%clk 0:00:21.4]}
31. Be4 {[%clk 0:00:03.6]} 31... Bd7 {[%clk 0:00:21.6]} 32. Rf1 {[%clk
0:00:03.4]} 32... Qh8 {[%clk 0:00:20]} 33. Rh1 {[%clk 0:00:04.4]} 33... Qg7
{[%clk 0:00:21.3]} 34. Rg1 {[%clk 0:00:03.7]} 34... Qf7 {[%clk 0:00:21.7]} 35.
Bd3 {[%clk 0:00:04.7]} 35... d5 {[%clk 0:00:18.5]} 36. c5 {[%clk 0:00:05.7]}
36... Bf6 {[%clk 0:00:18.6]} 37. Rf1 {[%clk 0:00:07]} 37... Qg7 {[%clk
0:00:18.4]} 38. Ne2 {[%clk 0:00:07.6]} 38... Ke7 {[%clk 0:00:17.7]} 39. Bc3
{[%clk 0:00:08.7]} 39... a5 {[%clk 0:00:18.6]} 40. Nf4 {[%clk 0:00:09.9]} 40...
Nxe3+ {[%clk 0:00:17.2]} 0-1

[Event "*** MasterClass Titled Tuesday Blitz"]
[Site "Chess.com"]
[Date "2017.09.05"]
[Round "5"]
[White "Grebeniuk-S"]
[Black "hypert"]
[Result "1-0"]
[WhiteElo "2392"]
[BlackElo "2311"]
[TimeControl "180+2"]
[EndTime "14:15:44 PDT"]
[Termination "Grebeniuk-S won on time"]

1. d4 {[%clk 0:03:01.9]} 1... Nf6 {[%clk 0:02:59]} 2. Nf3 {[%clk 0:03:02.7]}
2... e6 {[%clk 0:01:52.9]} 3. e3 {[%clk 0:03:01.4]} 3... c5 {[%clk 0:01:51.8]}
4. Bd3 {[%clk 0:03:02]} 4... b6 {[%clk 0:01:50.9]} 5. O-O {[%clk 0:03:02.6]}
5... Bb7 {[%clk 0:01:53.2]} 6. Nbd2 {[%clk 0:03:04.1]} 6... d6 {[%clk
0:01:54.5]} 7. b3 {[%clk 0:03:04.2]} 7... Nbd7 {[%clk 0:01:55.4]} 8. Bb2 {[%clk
0:03:05.6]} 8... Qc7 {[%clk 0:01:56.2]} 9. Qe2 {[%clk 0:03:06.5]} 9... Be7
{[%clk 0:01:55.9]} 10. c4 {[%clk 0:03:07.2]} 10... O-O {[%clk 0:01:56.4]} 11.
Rac1 {[%clk 0:03:08.6]} 11... e5 {[%clk 0:01:36.8]} 12. dxe5 {[%clk 0:03:03.9]}
12... Nxe5 {[%clk 0:01:31.1]} 13. Rfd1 {[%clk 0:02:20.9]} 13... Nxd3 {[%clk
0:01:23.6]} 14. Qxd3 {[%clk 0:02:21.8]} 14... Rad8 {[%clk 0:01:23.4]} 15. e4
{[%clk 0:02:16.8]} 15... Rfe8 {[%clk 0:01:21.4]} 16. Re1 {[%clk 0:02:15.3]}
16... Ng4 {[%clk 0:01:18.3]} 17. Qc2 {[%clk 0:01:41]} 17... Bf6 {[%clk
0:01:16.8]} 18. Bxf6 {[%clk 0:01:38.3]} 18... Nxf6 {[%clk 0:01:18.5]} 19. Re3
{[%clk 0:01:31.9]} 19... Ng4 {[%clk 0:01:16.1]} 20. Re2 {[%clk 0:01:28.5]} 20...
f5 {[%clk 0:01:12.7]} 21. Rce1 {[%clk 0:01:20.2]} 21... fxe4 {[%clk 0:00:57.2]}
22. Nxe4 {[%clk 0:01:21.2]} 22... Bxe4 {[%clk 0:00:47.4]} 23. Rxe4 {[%clk
0:01:23.1]} 23... Rxe4 {[%clk 0:00:48.4]} 24. Qxe4 {[%clk 0:01:24.6]} 24... Nf6
{[%clk 0:00:50.5]} 25. Qf5 {[%clk 0:00:51.2]} 25... Qd7 {[%clk 0:00:43.8]} 26.
Qg5 {[%clk 0:00:37.4]} 26... d5 {[%clk 0:00:40.8]} 27. Ne5 {[%clk 0:00:27.8]}
27... Qc7 {[%clk 0:00:33.8]} 28. cxd5 {[%clk 0:00:22.3]} 28... Rxd5 {[%clk
0:00:31.1]} 29. f4 {[%clk 0:00:17.1]} 29... Qd6 {[%clk 0:00:22.3]} 30. h3 {[%clk
0:00:16.7]} 30... Rd1 {[%clk 0:00:21.4]} 31. Rxd1 {[%clk 0:00:05.8]} 31... Qxd1+
{[%clk 0:00:24.1]} 32. Kh2 {[%clk 0:00:07.7]} 32... Qc2 {[%clk 0:00:26.1]} 33.
Nf3 {[%clk 0:00:02.1]} 33... Qxa2 {[%clk 0:00:19.7]} 34. Qe5 {[%clk 0:00:03.2]}
34... Qxb3 {[%clk 0:00:19.1]} 35. Ng5 {[%clk 0:00:04.6]} 1-0

[Event "*** MasterClass Titled Tuesday Blitz"]
[Site "Chess.com"]
[Date "2017.09.05"]
[Round "5"]
[White "sergiochess83"]
[Black "K_A_S_T_O_R"]
[Result "1-0"]
[WhiteElo "2769"]
[BlackElo "2612"]
[TimeControl "180+2"]
[EndTime "14:15:49 PDT"]
[Termination "sergiochess83 won by resignation"]

1. e4 {[%clk 0:03:01.9]} 1... c5 {[%clk 0:03:00.6]} 2. Nf3 {[%clk 0:03:02.6]}
2... d6 {[%clk 0:03:01.8]} 3. d4 {[%clk 0:03:03.2]} 3... cxd4 {[%clk 0:03:03.3]}
4. Nxd4 {[%clk 0:03:05.1]} 4... Nf6 {[%clk 0:03:04.5]} 5. Nc3 {[%clk 0:03:06.1]}
5... a6 {[%clk 0:03:06]} 6. Be3 {[%clk 0:03:06.3]} 6... e5 {[%clk 0:03:06.7]} 7.
Nf3 {[%clk 0:03:07.5]} 7... h6 {[%clk 0:03:03.7]} 8. Bc4 {[%clk 0:03:06.7]} 8...
Be7 {[%clk 0:03:04.1]} 9. O-O {[%clk 0:03:06.6]} 9... O-O {[%clk 0:03:01.6]} 10.
a4 {[%clk 0:03:04.2]} 10... Be6 {[%clk 0:03:00.6]} 11. Qe2 {[%clk 0:03:03.8]}
11... Qc7 {[%clk 0:02:57.9]} 12. Nd2 {[%clk 0:02:56.8]} 12... Nbd7 {[%clk
0:02:56.9]} 13. h3 {[%clk 0:02:45.4]} 13... Rac8 {[%clk 0:02:56.7]} 14. Bb3
{[%clk 0:02:46.4]} 14... Qc6 {[%clk 0:02:52.5]} 15. Rfd1 {[%clk 0:02:33.1]}
15... Rfd8 {[%clk 0:02:48.1]} 16. Rac1 {[%clk 0:02:28.8]} 16... Nf8 {[%clk
0:02:43]} 17. Qf3 {[%clk 0:02:08.5]} 17... b5 {[%clk 0:02:30.1]} 18. axb5 {[%clk
0:02:04.7]} 18... axb5 {[%clk 0:02:31.3]} 19. Nd5 {[%clk 0:02:03.1]} 19... Bxd5
{[%clk 0:02:32.2]} 20. exd5 {[%clk 0:02:03.2]} 20... Qd7 {[%clk 0:02:33.5]} 21.
c3 {[%clk 0:02:00]} 21... Ra8 {[%clk 0:02:25.1]} 22. Bc2 {[%clk 0:01:57.5]}
22... N6h7 {[%clk 0:02:19]} 23. Bf5 {[%clk 0:01:25.4]} 23... Qb7 {[%clk
0:02:16.9]} 24. Bc2 {[%clk 0:01:07.9]} 24... Bg5 {[%clk 0:02:15]} 25. Bxg5
{[%clk 0:01:01.4]} 25... Nxg5 {[%clk 0:02:14.5]} 26. Qg3 {[%clk 0:01:02.5]}
26... Qxd5 {[%clk 0:02:00.1]} 27. h4 {[%clk 0:01:01.8]} 27... Nge6 {[%clk
0:01:52.5]} 28. Be4 {[%clk 0:01:02.7]} 28... Qa2 {[%clk 0:01:40.5]} 29. Bxa8
{[%clk 0:01:03.2]} 29... Qxa8 {[%clk 0:01:41.1]} 30. Ra1 {[%clk 0:00:57.1]}
30... Qc6 {[%clk 0:01:37.8]} 31. Ra7 {[%clk 0:00:53.1]} 31... Nf4 {[%clk
0:01:37.7]} 32. Qf3 {[%clk 0:00:51.6]} 32... Qc5 {[%clk 0:01:29.7]} 33. Rda1
{[%clk 0:00:46.4]} 33... d5 {[%clk 0:01:29.5]} 34. g3 {[%clk 0:00:45.6]} 34...
N4e6 {[%clk 0:01:16.6]} 35. Qxf7+ {[%clk 0:00:45.2]} 35... Kh8 {[%clk
0:01:18.1]} 36. Nf3 {[%clk 0:00:41.5]} 36... d4 {[%clk 0:01:19.2]} 37. Qf5
{[%clk 0:00:35]} 37... dxc3 {[%clk 0:01:01.5]} 38. bxc3 {[%clk 0:00:34.4]} 38...
Qxc3 {[%clk 0:00:57.3]} 39. Nxe5 {[%clk 0:00:33.7]} 39... Kg8 {[%clk 0:00:58.3]}
40. Ng6 {[%clk 0:00:28.1]} 40... Nxg6 {[%clk 0:00:49.4]} 41. Qxe6+ {[%clk
0:00:26]} 41... Kh7 {[%clk 0:00:47.8]} 42. h5 {[%clk 0:00:23.1]} 42... Ne5
{[%clk 0:00:42.6]} 43. Qf5+ {[%clk 0:00:19.3]} 43... Kh8 {[%clk 0:00:43.1]} 44.
Ra8 {[%clk 0:00:17.4]} 44... Nc6 {[%clk 0:00:38.8]} 45. Rxd8+ {[%clk 0:00:15.4]}
45... Nxd8 {[%clk 0:00:40.3]} 46. Ra8 {[%clk 0:00:14.2]} 46... Qe1+ {[%clk
0:00:37.6]} 47. Kg2 {[%clk 0:00:13.9]} 1-0

[Event "*** MasterClass Titled Tuesday Blitz"]
[Site "Chess.com"]
[Date "2017.09.05"]
[Round "5"]
[White "PrinceMurad09"]
[Black "AllStarShark"]
[Result "1-0"]
[WhiteElo "2355"]
[BlackElo "2317"]
[TimeControl "180+2"]
[EndTime "14:15:52 PDT"]
[Termination "PrinceMurad09 won by checkmate"]

1. e4 {[%clk 0:03:01.9]} 1... c5 {[%clk 0:02:59.8]} 2. Nf3 {[%clk 0:03:02.6]}
2... g6 {[%clk 0:03:01]} 3. d4 {[%clk 0:03:01.1]} 3... cxd4 {[%clk 0:03:02.2]}
4. Qxd4 {[%clk 0:03:02.3]} 4... Nf6 {[%clk 0:03:02.6]} 5. Nc3 {[%clk 0:03:03.5]}
5... Nc6 {[%clk 0:03:03.2]} 6. Qa4 {[%clk 0:03:04.5]} 6... d6 {[%clk 0:03:04.1]}
7. e5 {[%clk 0:03:05.7]} 7... dxe5 {[%clk 0:03:03.7]} 8. Nxe5 {[%clk 0:03:06.9]}
8... Bd7 {[%clk 0:03:05.2]} 9. Nxd7 {[%clk 0:03:07.8]} 9... Qxd7 {[%clk
0:03:05.3]} 10. Be3 {[%clk 0:02:58.5]} 10... Bg7 {[%clk 0:03:02.2]} 11. Rd1
{[%clk 0:02:55.1]} 11... Qc7 {[%clk 0:03:01.6]} 12. Be2 {[%clk 0:02:52.7]} 12...
O-O {[%clk 0:02:59.6]} 13. O-O {[%clk 0:02:52.3]} 13... a6 {[%clk 0:02:59]} 14.
Qh4 {[%clk 0:02:32.7]} 14... Rad8 {[%clk 0:02:53.5]} 15. Bf3 {[%clk 0:02:24.4]}
15... Rxd1 {[%clk 0:02:48.6]} 16. Rxd1 {[%clk 0:02:23.5]} 16... Rd8 {[%clk
0:02:44.5]} 17. Qc4 {[%clk 0:02:20.9]} 17... Rxd1+ {[%clk 0:02:39.9]} 18. Nxd1
{[%clk 0:02:19.3]} 18... Qd7 {[%clk 0:02:21.4]} 19. Be2 {[%clk 0:02:04.9]} 19...
Qd5 {[%clk 0:01:52.8]} 20. c3 {[%clk 0:01:36.1]} 20... Qxc4 {[%clk 0:01:20]} 21.
Bxc4 {[%clk 0:01:38]} 21... b5 {[%clk 0:01:20.9]} 22. Be2 {[%clk 0:01:35.3]}
22... Nd5 {[%clk 0:01:15.7]} 23. Bc5 {[%clk 0:01:35.3]} 23... e6 {[%clk
0:01:06.4]} 24. a4 {[%clk 0:01:31.3]} 24... bxa4 {[%clk 0:01:02.6]} 25. Bxa6
{[%clk 0:01:31.7]} 25... a3 {[%clk 0:01:03.5]} 26. Bxa3 {[%clk 0:01:31.7]} 26...
f5 {[%clk 0:00:46.9]} 27. Kf1 {[%clk 0:01:30.8]} 27... Kf7 {[%clk 0:00:47.2]}
28. Bb7 {[%clk 0:01:29.8]} 28... Nce7 {[%clk 0:00:25.3]} 29. Ke2 {[%clk
0:01:23.7]} 29... Ke8 {[%clk 0:00:24.1]} 30. Ne3 {[%clk 0:01:24.2]} 30... Nxe3
{[%clk 0:00:16.6]} 31. Kxe3 {[%clk 0:01:22]} 31... Kd7 {[%clk 0:00:17.9]} 32.
Kd3 {[%clk 0:01:14.2]} 32... e5 {[%clk 0:00:18.9]} 33. f3 {[%clk 0:01:14.5]}
33... Ke6 {[%clk 0:00:16.8]} 34. c4 {[%clk 0:01:14.6]} 34... g5 {[%clk
0:00:14.7]} 35. b4 {[%clk 0:01:11.2]} 35... h5 {[%clk 0:00:14.6]} 36. b5 {[%clk
0:01:09.5]} 36... g4 {[%clk 0:00:15.3]} 37. b6 {[%clk 0:01:03.6]} 37... h4
{[%clk 0:00:15.9]} 38. fxg4 {[%clk 0:01:01.9]} 38... fxg4 {[%clk 0:00:15.4]} 39.
Ke4 {[%clk 0:01:02.8]} 39... h3 {[%clk 0:00:10.4]} 40. gxh3 {[%clk 0:00:58.3]}
40... gxh3 {[%clk 0:00:12.3]} 41. Bxe7 {[%clk 0:00:58]} 41... Kxe7 {[%clk
0:00:12.6]} 42. Bc8 {[%clk 0:00:59.3]} 42... Kd8 {[%clk 0:00:12.7]} 43. Bxh3
{[%clk 0:01:00.2]} 43... Bh6 {[%clk 0:00:13.4]} 44. Kxe5 {[%clk 0:01:00.5]}
44... Be3 {[%clk 0:00:14.5]} 45. b7 {[%clk 0:00:56.2]} 45... Kc7 {[%clk
0:00:15.6]} 46. Bg2 {[%clk 0:00:55.1]} 46... Ba7 {[%clk 0:00:14]} 47. h4 {[%clk
0:00:55.7]} 47... Bb8 {[%clk 0:00:15.3]} 48. Kf6 {[%clk 0:00:56.5]} 48... Kb6
{[%clk 0:00:16.4]} 49. h5 {[%clk 0:00:57.5]} 49... Kc5 {[%clk 0:00:18.3]} 50.
Bd5 {[%clk 0:00:58.5]} 50... Kd4 {[%clk 0:00:19.2]} 51. h6 {[%clk 0:00:59.7]}
51... Kc5 {[%clk 0:00:18.6]} 52. Kf7 {[%clk 0:01:00.3]} 52... Kd6 {[%clk
0:00:19.5]} 53. h7 {[%clk 0:01:01.2]} 53... Kd7 {[%clk 0:00:21]} 54. h8=Q {[%clk
0:01:02]} 54... Bc7 {[%clk 0:00:19.9]} 55. Qc8+ {[%clk 0:00:59.7]} 55... Kd6
{[%clk 0:00:20.4]} 56. Qe6+ {[%clk 0:01:01.1]} 56... Kc5 {[%clk 0:00:21.4]} 57.
Qc6+ {[%clk 0:01:02.6]} 57... Kb4 {[%clk 0:00:22.6]} 58. Qxc7 {[%clk 0:01:03]}
58... Kc3 {[%clk 0:00:24]} 59. b8=Q {[%clk 0:01:03.4]} 59... Kd2 {[%clk
0:00:24.9]} 60. Qf4+ {[%clk 0:01:04.6]} 60... Kd1 {[%clk 0:00:25.5]} 61. Qb1+
{[%clk 0:01:05.7]} 61... Ke2 {[%clk 0:00:26.2]} 62. Qc2+ {[%clk 0:01:06.9]}
62... Ke1 {[%clk 0:00:26.9]} 63. Qff2# {[%clk 0:01:08.5]} 1-0

[Event "*** MasterClass Titled Tuesday Blitz"]
[Site "Chess.com"]
[Date "2017.09.05"]
[Round "5"]
[White "Art10ECHR"]
[Black "WeiYi1999"]
[Result "0-1"]
[WhiteElo "2229"]
[BlackElo "2138"]
[TimeControl "180+2"]
[EndTime "14:15:55 PDT"]
[Termination "WeiYi1999 won on time"]

1. e4 {[%clk 0:03:01.9]} 1... d5 {[%clk 0:03:00.6]} 2. exd5 {[%clk 0:03:01.8]}
2... Nf6 {[%clk 0:03:01.8]} 3. c4 {[%clk 0:03:01.3]} 3... c6 {[%clk 0:03:02.2]}
4. Nc3 {[%clk 0:03:02.2]} 4... cxd5 {[%clk 0:03:02.8]} 5. cxd5 {[%clk
0:03:04.1]} 5... Nxd5 {[%clk 0:03:03.2]} 6. Nf3 {[%clk 0:03:05.7]} 6... g6
{[%clk 0:03:02.8]} 7. Bc4 {[%clk 0:02:52.1]} 7... Nb6 {[%clk 0:03:00.3]} 8. Bb3
{[%clk 0:02:43.2]} 8... Nc6 {[%clk 0:03:00.4]} 9. a4 {[%clk 0:02:35.9]} 9... Bg7
{[%clk 0:02:43.1]} 10. a5 {[%clk 0:02:33.4]} 10... Nd7 {[%clk 0:02:39.9]} 11.
Bxf7+ {[%clk 0:02:14]} 11... Kf8 {[%clk 0:02:33.9]} 12. Ng5 {[%clk 0:02:10.9]}
12... Nde5 {[%clk 0:02:32.7]} 13. Ne6+ {[%clk 0:01:59]} 13... Bxe6 {[%clk
0:02:32.2]} 14. Bxe6 {[%clk 0:02:00.9]} 14... Nd3+ {[%clk 0:02:30.8]} 15. Kf1
{[%clk 0:02:01.4]} 15... Ke8 {[%clk 0:02:32]} 16. Qb3 {[%clk 0:01:34]} 16... Qd4
{[%clk 0:02:18.9]} 17. Nd1 {[%clk 0:01:13.1]} 17... Rf8 {[%clk 0:02:18.8]} 18.
f3 {[%clk 0:01:11.2]} 18... Rd8 {[%clk 0:01:57.5]} 19. Bc4 {[%clk 0:01:04.1]}
19... Nxc1 {[%clk 0:01:53.4]} 20. Rxc1 {[%clk 0:01:06]} 20... Qxd2 {[%clk
0:01:51.7]} 21. Rb1 {[%clk 0:01:06.4]} 21... a6 {[%clk 0:01:40.4]} 22. Nc3
{[%clk 0:01:03.9]} 22... Nxa5 {[%clk 0:01:36.8]} 23. Qa4+ {[%clk 0:01:04.5]}
23... Nc6 {[%clk 0:01:34.6]} 24. Ne4 {[%clk 0:01:02.2]} 24... Qe3 {[%clk
0:01:33.6]} 25. Qc2 {[%clk 0:00:58.6]} 25... Nd4 {[%clk 0:01:30.2]} 26. Qf2
{[%clk 0:00:56]} 26... Nf5 {[%clk 0:01:20.2]} 27. Re1 {[%clk 0:00:54.1]} 27...
Qxf2+ {[%clk 0:01:18]} 28. Kxf2 {[%clk 0:00:56]} 28... Bxb2 {[%clk 0:01:18]} 29.
Ke2 {[%clk 0:00:50]} 29... b5 {[%clk 0:01:15.8]} 30. Ba2 {[%clk 0:00:47.8]}
30... a5 {[%clk 0:01:14.9]} 31. Rb1 {[%clk 0:00:45.9]} 31... Be5 {[%clk
0:01:11.8]} 32. h4 {[%clk 0:00:44.1]} 32... Nd4+ {[%clk 0:01:09]} 33. Kf2 {[%clk
0:00:42.8]} 33... a4 {[%clk 0:01:09.1]} 34. Rhc1 {[%clk 0:00:39.8]} 34... e6
{[%clk 0:00:59]} 35. Rc5 {[%clk 0:00:35.3]} 35... Rf5 {[%clk 0:00:57.3]} 36. Rc3
{[%clk 0:00:32.9]} 36... Bd6 {[%clk 0:00:53.5]} 37. Ke3 {[%clk 0:00:31.1]} 37...
Be7 {[%clk 0:00:50.2]} 38. Rbc1 {[%clk 0:00:28.2]} 38... b4 {[%clk 0:00:49.9]}
39. Rc7 {[%clk 0:00:20.2]} 39... b3 {[%clk 0:00:50.7]} 40. Bb1 {[%clk
0:00:17.4]} 40... a3 {[%clk 0:00:50.8]} 41. Ra7 {[%clk 0:00:13.3]} 41... Nb5
{[%clk 0:00:49.6]} 42. Ra6 {[%clk 0:00:12]} 42... Rfd5 {[%clk 0:00:47.4]} 43. g3
{[%clk 0:00:09.9]} 43... a2 {[%clk 0:00:47.7]} 44. Bxa2 {[%clk 0:00:07.4]} 44...
bxa2 {[%clk 0:00:48.8]} 45. Rxa2 {[%clk 0:00:09.3]} 45... Rd3+ {[%clk
0:00:49.6]} 46. Kf4 {[%clk 0:00:09.7]} 46... Nd4 {[%clk 0:00:50.7]} 47. Rf2
{[%clk 0:00:08.7]} 47... Rxf3+ {[%clk 0:00:49.6]} 48. Rxf3 {[%clk 0:00:09.4]}
48... Ne2+ {[%clk 0:00:51.5]} 49. Ke3 {[%clk 0:00:10.6]} 49... Nxc1 {[%clk
0:00:53.4]} 50. Rf1 {[%clk 0:00:10.9]} 50... Rd3+ {[%clk 0:00:53.1]} 51. Kf4
{[%clk 0:00:11.5]} 51... Nb3 {[%clk 0:00:53.8]} 52. Rb1 {[%clk 0:00:11.8]} 52...
Kd7 {[%clk 0:00:50.9]} 53. h5 {[%clk 0:00:09.3]} 53... Bd6+ {[%clk 0:00:51.5]}
0-1